Cogmind - Beta 17 @@@ ROGUE MODE // 2026.07.01 @ 22:33:31 Player: Voilon3 Result: Destroyed by S-10 Pest with Light Assault Rifle Performance ------------- Evolutions (1) 500 Regions Visited (3) 600 Robots Destroyed (53) 265 Value Destroyed (880) 880 Prototype IDs (1) 20 Alien Tech Used (0) 0 Bonus (24) 24 TOTAL SCORE: 2289 Bonus ------- High Alert Combat Kills 24 Cogmind --------- Core Integrity 0/400 Matter 293/300 Energy 93/100 System Corruption 2% Temperature Cool (0) Movement Core (400) Ox7 Location -9/Mines Parts ------- > --- POWER (2) -------- (None) > --- PROPULSION (2) --- (None) > --- UTILITY (2) ------ Large Storage Unit Power Shielding > --- WEAPON (3) ------- Makeshift Hammer > --- INVENTORY (15) --- Seismic Detector Datajack Peak State ------------ > --- POWER ------------ Light Ion Engine Light Ion Engine > --- PROPULSION ------- Wheel > --- UTILITY ---------- Large Storage Unit Experimental Sensor Array > --- WEAPON ----------- Light Assault Rifle Makeshift Hammer > --- INVENTORY -------- Light Ion Engine Light Ion Engine Seismic Detector Power Shielding Datajack [Rating: 18] Favorites ----------- Power Light Ion Engine Engine Light Ion Engine Propulsion Wheel Treads Light Treads Wheel Wheel Utility Large Storage Unit Device Improved Terrain Scanner Storage Large Storage Unit Protection Power Shielding Weapon Light Cannon Energy Gun EM Pulse Gun Ballistic Gun Light Assault Rifle Ballistic Cannon Light Cannon Launcher Grenade Launcher Impact Weapon Makeshift Hammer Special Melee Weapon Datajack Build | -11 -10 -9 -9 ------- Run | Yrd Mat Mat Min Slots Evolved 2 | . . 2 . Power 1 | . . 1 . Propulsion . | . . . . Utility . | . . . . Weapon 1 | . . 1 . Parts Attached 27 | 8 6 6 7 Power 7 | 1 1 2 3 Engine 7 | 1 1 2 3 Core . | . . . . Reactor . | . . . . Propulsion 7 | 2 2 2 1 Treads 2 | 2 . . . Leg . | . . . . Wheel 5 | . 2 2 1 Hover . | . . . . Flight . | . . . . Utility 6 | 3 . 1 2 Device 3 | 2 . . 1 Storage 2 | 1 . 1 . Processor . | . . . . Hackware . | . . . . Protection 1 | . . . 1 Artifact . | . . . . Weapon 7 | 2 3 1 1 Energy Gun 1 | 1 . . . Energy Cannon . | . . . . Ballistic Gun 2 | 1 . 1 . Ballistic Cannon 1 | . 1 . . Launcher 1 | . 1 . . Special Weapon . | . . . . Impact Weapon 1 | . . . 1 Slashing Weapon . | . . . . Piercing Weapon . | . . . . Special Melee Weapon 1 | . 1 . . Unidentified Prototypes 1 | . . . 1 Parts Lost 11 | . . 1 10 Power 5 | . . 1 4 Propulsion 2 | . . . 2 Utility 1 | . . . 1 Weapon 3 | . . . 3 Highest Loss Streak 9 | . . 1 9 To Critical Strikes . | . . . . Average Backups 4 | 3 5 3 5 Power 1 | . 1 . 1 Propulsion . | 1 1 . . Utility 1 | . 1 1 1 Weapon . | . 1 . . Tool/Special . | . . . . Unused Backups . | . . . . Power . | . . . . Propulsion . | . . . . Utility . | . . . . Weapon . | . . . . Tool/Special . | . . . . Average Slot Usage (%) 91 | . 100 97 87 Engine 19 | . 14 20 20 Treads 3 | . 21 . . Wheel 17 | . 7 22 18 Device 11 | . 14 11 10 Storage 11 | . 14 11 11 Energy Gun 1 | . 8 . . Ballistic Gun 10 | . 11 10 10 Ballistic Cannon 8 | . 1 11 9 Launcher 5 | . 5 11 3 Impact Weapon 1 | . . . 1 Peak Build Rating 18 | 9 9 11 18 Average Rating 11 | 5 8 10 13 On Entrance 7 | . 9 9 11 Avg Prop Armor Cover (%) . | . . . . Naked Turns . | . . . . Heaviest Build 35 | 13 15 35 34 Greatest Support 40 | 40 40 26 20 Greatest Overweight (x) 10 | . . 1 10 Average Overweight (x) . | . . . 1 Largest Inventory Capacity 15 | 8 8 15 15 Average Capacity 12 | 7 8 14 15 Most Carried 7 | 6 7 6 7 Average Carried 4 | 3 5 3 5 Final Capacity 15 | 8 8 15 15 Final Carried 6 | 5 5 6 2 Class Distribution -------------------- 31% | Mutant 27% | Scavenger-Mutant 25% | Scavenger-Skirmisher 15% | Skirmisher Dominant Class ---------------- Mutant | -10/Materials Skirmisher | -9/Materials Scavenger-Mutant | -9/Mines Resources | -11 -10 -9 -9 ----------- Run | Yrd Mat Mat Min Matter Collected 946 | 292 85 289 280 Remotely . | . . . . Salvage Created 963 | 78 179 496 210 Parts 91 | 7 26 47 11 Haulers Intercepted 1 | . . 1 . Recyclers Shooed 3 | 1 1 1 . Parts Field Recycled . | . . . . Retrieved Matter . | . . . . Parts Self-Destructed . | . . . . Prevented . | . . . . Parts Restored . | . . . . Kills | -11 -10 -9 -9 ------- Run | Yrd Mat Mat Min Combat Hostiles Destroyed 37 | . 8 19 10 Melee 2 | . . . 2 Guns 9 | . 5 1 3 Cannons 6 | . . 3 3 AOE 20 | . 3 15 2 Classes Destroyed 8 | 2 4 2 . Worker 5 | 1 . 4 . Builder 4 | . 3 1 . Tunneler 2 | 2 . . . Hauler 1 | . . 1 . Recycler 1 | . . 1 . Watcher 3 | . 1 2 . Swarmer 23 | . 6 11 6 Grunt 14 | . 2 8 4 Best Kill Streak 15 | 3 11 15 4 Combat Bots Only 11 | . 8 11 4 Max Kills in Single Turn 4 | 1 2 4 1 Gunslinging . | . . . . Exploded 3 | . 2 3 1 Melee 1 | . . . 1 Uniques/NPCs Destroyed . | . . . . Combat | -11 -10 -9 -9 -------- Run | Yrd Mat Mat Min Hostile Shots Fired 228 | . 48 56 124 Missed 67 | . 13 18 36 Hits 161 | . 35 38 88 Projectile 161 | . 35 38 88 Critical Strikes 5 | . 2 . 3 Damage Taken 1640 | 34 332 312 962 Core 459 | . 58 41 360 Absorbed by Shields . | . . . . Redirected to Shielding 16 | . . . 16 Core Remaining (%) 88 | 100 76 . . Volleys Fired 78 | 4 19 18 37 Largest 3 | 2 2 3 3 Hottest 80 | 60 60 80 80 Shots Fired 147 | 8 35 49 55 Gun 93 | 8 30 18 37 Cannon 32 | . . 18 14 Launcher 22 | . 5 13 4 Special . | . . . . Kinetic 109 | 4 18 36 51 Thermal . | . . . . Explosive 22 | . 5 13 4 Electromagnetic 16 | 4 12 . . Robot Hit Streak 9 | 7 2 4 9 Robot Miss Streak 7 | . 4 7 4 Penetration Max . | . . . . Secondary Targets 2 | . 2 . . Max Gunslinging Chain 1 | . 1 . . Shots Hit Robots 70 | 7 11 18 34 Core Hits 68 | 3 14 36 15 Critical Kills . | . . . . Critical Parts Destroyed 2 | . . . 2 Critical Strikes 3 | . . . 3 Blast 1 | . . . 1 Smash 2 | . . . 2 Melee Attacks 9 | . . . 9 Impact 7 | . . . 7 Slashing . | . . . . Piercing . | . . . . Sneak Attacks 2 | . . . 2 Combat Hostiles . | . . . . Follow-up Attacks . | . . . . Damage Inflicted 2595 | 178 428 1325 664 Guns 470 | 91 107 110 162 Cannons 183 | . . 95 88 Explosions 1694 | 87 321 1120 166 Melee 247 | . . . 247 Ramming 1 | . . . 1 Kinetic 539 | 36 48 205 250 Thermal 87 | 87 . . . Explosive 1607 | . 321 1120 166 Electromagnetic 114 | 55 59 . . Impact 247 | . . . 247 Slashing . | . . . . Piercing . | . . . . Highest Corruption 2 | . 2 2 2 Average Corruption 1 | . 1 2 2 Corruption Purged . | . . . . Corruption Blocked . | . . . . Effects 7 | . . . 7 Message Errors 2 | . . . 2 Matter Fused 1 | . . . 1 Heat Flow Errors 2 | . . . 2 Energy Discharges 1 | . . . 1 Data Loss (minor) 1 | . . . 1 Overload Shots . | . . . . Overflow Damage 123 | . 11 5 107 Projectiles . | . . . . Explosions 16 | . 11 5 . Melee 107 | . . . 107 Knockbacks 1 | . . . 1 Impact . | . . . . Kinetic 1 | . . . 1 Secondary . | . . . . Self-Inflicted Damage 76 | 35 39 2 . Shots 3 | 1 1 1 . Rammed 1 | . . . 1 Targets Rammed 1 | . . . 1 Kicked . | . . . . Crushed . | . . . . Highest Temperature 220 | 12 . 84 220 Average Temperature 44 | 12 . 23 58 Received Heat Transfer 426 | . 12 18 396 Effects 1 | . . . 1 Energy Bleed 1 | . . . 1 Siege Activations . | . . . . Martial Activations . | . . . . Shielding Activations . | . . . . Robots Disrupted . | . . . . Combat Hostiles . | . . . . Robots Corrupted . | . . . . Combat Hostiles . | . . . . Parts Fried . | . . . . Impact Corruptions 2 | . . . 2 Robots Melted . | . . . . Combat Hostiles . | . . . . Parts Melted . | . . . . Heat Transferred 150 | 150 . . . Parts Sabotaged . | . . . . Parts Stolen . | . . . . Parts Stripped . | . . . . Power Chain Reactions 1 | 1 . . . Alert | -11 -10 -9 -9 ------- Run | Yrd Mat Mat Min Maximum Alert Level 2 | . 1 2 1 Low Security (%) 64 | 100 71 53 57 Level 1 33 | . 28 30 42 Level 2 2 | . . 16 . Level 3 . | . . . . Level 4 . | . . . . Level 5 . | . . . . High Security . | . . . . Max Security . | . . . . Peak Influence 537 | 5 212 537 267 Initial 205 | . . 80 205 Average 157 | . 97 232 183 Influence Increases 1115 | 15 261 557 282 Destroy 0b10 Robot/C 740 | . 160 380 200 Destroy 0b10 Robot/NC 80 | 15 20 45 . Destroy Leader 128 | . 42 46 40 Disable Machine 60 | . 15 45 . Destroy Structure 92 | . 24 41 27 Lose Combat Pursuer 15 | . . . 15 Influence Decreases 1022 | 15 70 221 716 Entered New Map 433 | . . 111 322 Time Decay 479 | 15 70 100 294 Lost Part 110 | . . 10 100 Squads Dispatched 2 | . 2 . . Investigation 1 | . 1 . . Extermination . | . . . . Reinforcement 1 | . 1 . . Assault . | . . . . Garrison . | . . . . Intercept . | . . . . Searches Triggered . | . . . . Construction Impeded . | . . . . Haulers Reinforced . | . . . . Active Scanning Responses . | . . . . Cargo Convoy Interrupts . | . . . . Stealth | -11 -10 -9 -9 --------- Run | Yrd Mat Mat Min Distress Signals 3 | . 1 2 . Communications Jammed . | . . . . Distress Signals . | . . . . Times Spotted 46 | . 10 22 14 Peak Tracking Total 8 | . 4 8 4 Tactical Retreats 1 | . . . 1 Traps | -11 -10 -9 -9 ------- Run | Yrd Mat Mat Min Traps Triggered 4 | . 3 1 . Indirectly . | . . . . Trap Hack Attempts . | . . . . Triggered . | . . . . Disarmed . | . . . . Reprogrammed . | . . . . Reused . | . . . . Traps Extracted . | . . . . Installed . | . . . . Triggered . | . . . . Machines | -11 -10 -9 -9 ---------- Run | Yrd Mat Mat Min Machines Disabled 5 | . 1 4 . Max in Single Turn 1 | . 1 1 . Machines Repaired . | . . . . Machines Dismantled . | . . . . Machines Sabotaged . | . . . . Overloaded Fab Kills . | . . . . Hacking | -11 -10 -9 -9 --------- Run | Yrd Mat Mat Min Machines Accessed . | . . . . Terminals . | . . . . Fabricators . | . . . . Repair Stations . | . . . . Recycling Units . | . . . . Scanalyzers . | . . . . Garrison Access . | . . . . Total Hacks . | . . . . Successful . | . . . . Failed . | . . . . Catastrophic . | . . . . Database Lockouts . | . . . . Manual . | . . . . Terminals . | . . . . Fabricators . | . . . . Repair Stations . | . . . . Recycling Units . | . . . . Scanalyzers . | . . . . Garrison Access . | . . . . Terminal Hacks . | . . . . Fabricator Hacks . | . . . . Repair Station Hacks . | . . . . Recycling Unit Hacks . | . . . . Scanalyzer . | . . . . Garrison Access Hacks . | . . . . Unauthorized Hacks . | . . . . Terminals . | . . . . Fabricators . | . . . . Repair Stations . | . . . . Recycling Units . | . . . . Scanalyzers . | . . . . Garrison Access . | . . . . Data Cores Recovered . | . . . . Used . | . . . . Hacking Detections . | . . . . Full Trace Events . | . . . . Feedback Events . | . . . . Feedback Blocked . | . . . . Robot Schematics Acquired . | . . . . Robots Built . | . . . . Authchips . | . . . . Time . | . . . . Total Robot Build Rating . | . . . . Part Schematics Acquired . | . . . . Parts Built . | . . . . Authchips . | . . . . Time . | . . . . Total Part Build Rating . | . . . . Part Studies Acquired . | . . . . Parts Repaired . | . . . . Time . | . . . . Parts Recycled . | . . . . Recycled Matter . | . . . . Retrieved Matter . | . . . . Retrieved Components . | . . . . Parts Scanalyzed . | . . . . Part Schematics Acquired . | . . . . Parts Damaged . | . . . . Bothacking | -11 -10 -9 -9 ------------ Run | Yrd Mat Mat Min Used RIF Installer . | . . . . Robots Hacked 1 | . . . 1 Non-combat 1 | . . . 1 Combat . | . . . . Robot Hacks Applied 1 | . . . 1 parse_system 1 | . . . 1 Relay Couplers Released . | . . . . Fabnet Peak Effective % . | . . . . Robots Rewired . | . . . . Allies Hacked . | . . . . Hacks Repelled . | . . . . Allies | -11 -10 -9 -9 -------- Run | Yrd Mat Mat Min Total Allies . | . . . . Largest Group . | . . . . Highest-Rated Group . | . . . . Highest-Rated Ally . | . . . . Total Orders . | . . . . Ally Attacks . | . . . . Total Damage . | . . . . Kills . | . . . . Allies Corrupted . | . . . . Allies Melted . | . . . . Intel | -11 -10 -9 -9 ------- Run | Yrd Mat Mat Min Active Infowar (turns) 1031 | 47 188 208 588 Sensors 339 | . . . 339 Terrain 660 | 15 188 208 249 Seismic 32 | 32 . . . Robot Analysis Total . | . . . . Derelict Logs Recovered 1 | . . . 1 Drone Launches . | . . . . Drone Recoveries . | . . . . Exploration | -11 -10 -9 -9 ------------- Run | Yrd Mat Mat Min Turns Passed 1171 | 135 188 208 640 Spaces Moved 832 | 79 97 133 523 Core 27 | 20 . . 7 Treads 107 | 59 48 . . Legs . | . . . . Wheels 698 | . 49 133 516 Hover . | . . . . Flight . | . . . . Fastest Speed 50 | 50 90 90 95 Average Speed 106 | 132 124 100 100 Slowest Speed 550 | 160 160 105 550 Overloaded Moves . | . . . . Propulsion Burnouts . | . . . . Robots Hopped . | . . . . Potential Cave-ins . | . . . . Cave-ins Triggered . | . . . . Exploration Rate (%) 35 | 3 32 25 82 Regions Visited 3 Branch Regions 1 Pre-discovered Areas . | . . . . Known Exits Taken . | . . . . Unknown Exits Taken 3 | 1 1 1 . Scrap Searched . | . . . . Spaces Dug . | . . . . Terrain Destroyed 104 | 4 31 38 31 Melee . | . . . . Projectile . | . . . . AOE 104 | 4 31 38 31 Terrain Rammed . | . . . . Walls Destroyed . | . . . . Machines Disabled . | . . . . Actions | -11 -10 -9 -9 --------- Run | Yrd Mat Mat Min Total 988 | 102 131 169 586 Wait . | . . . . Move 829 | 78 96 132 523 Hop . | . . . . Pick Up 26 | 11 4 8 3 Fast Attach 1 | 1 . . . Attach 27 | 7 6 7 7 Detach 4 | 1 2 . 1 Swap 2 | . . . 2 Drop 11 | . 4 4 3 Fire 78 | 4 19 18 37 Melee 9 | . . . 9 Ram 1 | . . . 1 Kick . | . . . . Crush . | . . . . Escape Stasis . | . . . . Rewire . | . . . . Trap . | . . . . Miscellaneous . | . . . . Route ------- -11/Scrapyard -10/Materials -9/Materials -9/Mines History --------- Turn | Location | Event 3 | -11/Scrapyard | Discovered new exit (range 16) 136 | -11/Scrapyard | Entered Materials 284 | -10/Materials | Destroyed 8 combat bots 285 | -10/Materials | Discovered new exit (range 15) 324 | -10/Materials | Entered another Materials area 324 | -9/Materials | Evolved 2 slots: Power x1, Weapon x1 453 | -9/Materials | Discovered new exit (range 15) 525 | -9/Materials | Destroyed 11 combat bots 532 | -9/Materials | Entered Mines 773 | -9/Mines | Found a damaged Exp. Sensor Array with a note attached 780 | -9/Mines | Found Prototype Device 781 | -9/Mines | Identified Exp. Sensor Array 991 | -9/Mines | Learned Materials security intel 1005 | -9/Mines | A weapon hastily lodged in a ceiling crevice suddenly fell to the ground 1048 | -9/Mines | Build established: Scavenger-Mutant 1133 | -9/Mines | Core integrity fell below 50% 1155 | -9/Mines | Core integrity fell below 20% 1172 | -9/Mines | Destroyed by S-10 Pest with Light Assault Rifle Last Messages --------------- Lgt. Assault Rifle destroyed. System corrupted: Energy discharge (-23). G-47 Trooper suffers critical hit (Smash). Destroyed Imp. Heat Sink. G-47 Trooper system corrupted by crushing effect. G-47 Trooper suffers critical hit (Smash). Destroyed Particle Gun. G-47 Trooper system corrupted by crushing effect. G-47 Trooper destroyed. K-01 Serf collects debris. Acquired 48 matter. K-01 Serf collects debris. Lgt. Ion Engine destroyed. S-10 Pest destroyed. K-01 Serf collects debris. Acquired 16 matter. K-01 Serf collects debris. Lgt. Ion Engine destroyed. Map ----- +----------------------------------------------------+ | #????# ####?????# """ """ """ #?????????? | | ####????# ##????# #?????????? | | #???????## ##???# """ """ """ #?????????? | | ##???????###### ##### """ """ """ #????????## | | ####???#?????## """ """ """ #????????? | | ## ##?????## #??#??????? | | #??????# ###### """ """ """ #???????### | | ????# ##???# """ """ """ #??????## | | ## ??## ###?# """ """ """ #?????## " | | #????# #?# #????## " | | #### ##????# #?# #???## " | | ##???# ###?????# #?# #??## | | ??????###???????## ##?# #?## | | ?????????????????## ##??################# ### | | ??#########???#???# #????????????????## #### | | ### ### ##### #???????????????## #??# | | #??????????????## #??# | | ######## #?????????????## ##??# | | #??#### #????????????## ##???# | | #??# = *######??????## ##????# | | # ##??# !*=## #?????## ####???#?# | | # ## #???# [ =u### #?????# ###????????? | | ## ### ###### = #######?# ##????????##? | | ?## ##?# k ##???#### #???????????? | | ??####??# % sts ###????# #???????##### | | ????????######### ## @% #????# #??????## # | | ????????????????# ### ##k #????# #?????## | | ????????#???????# #### #### #???## #???### | | ????????????????# ######### #????# #?### | | ????????????? ? #?####??# ###### ### | | ???? ??????????#####???#??## | | ?????????#????????????????## | | ???????????????????????????############# ### | | ???????#???????????????????????????????####?###### | | ??????????????????######??????????????#??????????? | | ?????????????????## ##?#??????????????????????? | | ?????????????????# ##??????#??????????#?????# | | ?????????????????# #???????????????????????? | | ???????????????### ##?????????????#????????? | | ??????????????## #???#??????????????????? | | ??????????????# ###############????????? | | ??????????????# #????????? | | ?????????????## ############ #????#?#?? | | ??????????#### #??????????# ##??????#? | | ?????????## ##??????????# #??#?????? | | ?????????# ##???????###?# ########## | | ?????????# # ########## ### | | ?????????# ## ## ########## | | ?????????## ### ### # ##?#??##?# | | ??????????####?## #?############# ##???#### | +----------------------------------------------------+ Best States ------------- Heat Dissipation 28 Energy Generation 15 Energy Capacity 150 Matter Stores 300 Matter Capacity 300 Sight Range 16 Robot Scan Range 20 Terrain Scan Range 16 Terrain Scan Density 10 Power Shielding 33 Evasion (%) 50 Recoil Reduction 2 Item Schematics ----------------- None Robot Schematics ------------------ None Fabricated ------------ Nothing Repaired ---------- Nothing Studied --------- None Alien Tech Used ----------------- None Achievements -------------- For Emergencies Only Challenges ------------ None Game ------ Seed TitaniumScrapShooter Manual? 0 Play Time 00:24:47 Cumulative 2.1 hours Start 2026.07.01 @ 22:05:03 End 2026.07.01 @ 22:33:31 Sessions 1 Manual Loads 0 Difficulty Rogue Special Mode None Game No. 4 Rogue 4 Adventurer 0 Explorer 0 Win Type - Total 0 Types 0/0/0/0/0/0/0/0/0/0 Lore% 0 Gallery% 4 Achievement% 5 Wizard Run 0 Options --------- Layout 1 ASCII 0 Keyboard 0 Movement Mouse Keybinds 0 Fullscreen 1 Font 24/Smallcaps Map View 50x35 Zoom Use 0% Tactical HUD 0 Map Filters NONE Filters NONE Steam 1 RUN: ecb1dc60-9b80-445d-8b7c-1cd5185dbdd8